bitfinex/quotes_BTCUSD_20250624
["timestamp","ask_amount","ask_price","bid_price","bid_amount"]
[1750729228260,0.35217633,105240.0,105230.0,0.01350299]
[1750729229080,0.35217633,105240.0,105230.0,0.004]
[1750729233093,0.08588085,105240.0,105230.0,0.004]
[1750729233320,0.35217633,105240.0,105230.0,0.01350299]
[1750729233520,0.35217633,105240.0,105230.0,0.004]
[1750729236750,0.35217633,105240.0,105230.0,0.01350299]
[1750729237012,0.35217633,105240.0,105230.0,0.004]
[1750729239897,0.35217633,105240.0,105230.0,0.01350299]
[1750729240670,0.08588085,105240.0,105230.0,0.01350299]
[1750729240877,0.35217633,105240.0,105230.0,0.02300589]
[1750729241777,0.35217633,105240.0,105230.0,0.01350299]
[1750729242027,0.35217633,105240.0,105230.0,0.02300589]
[1750729242691,0.04524085,105240.0,105230.0,0.24157346]
[1750729242899,0.65340212,105260.0,105250.0,0.19952493]
[1750729242900,0.05875522,105260.0,105250.0,0.19952493]
[1750729243103,0.04056,105260.0,105250.0,0.49432287]
[1750729243642,0.04056,105260.0,105250.0,0.49432296]
[1750729243869,0.04056,105260.0,105250.0,0.48482232]
[1750729244066,0.07136,105260.0,105250.0,0.21852684]
[1750729244270,0.07136,105260.0,105250.0,0.22802775]
[1750729244734,0.35219633,105260.0,105240.0,0.2090457]
[1750729244959,0.0308,105250.0,105240.0,0.21854705]
[1750729245173,0.29709548,105250.0,105230.0,0.45635534]
[1750729245392,0.04056,105240.0,105230.0,0.21856739]
[1750729245609,0.04056,105240.0,105230.0,0.22807038]
[1750729246032,0.04056,105240.0,105230.0,0.49436586]
[1750729248479,0.04056,105240.0,105230.0,0.23207038]
[1750729250348,0.04056,105240.0,105230.0,0.23807038]
[1750729251052,0.04056,105240.0,105230.0,0.22856811]
[1750729251276,0.07246,105240.0,105230.0,0.23807056]
[1750729251716,0.07246,105240.0,105230.0,0.24757292]
[1750729251965,0.07246,105240.0,105230.0,0.23807056]
[1750729252244,0.37097928,105240.0,105230.0,0.01]
[1750729252385,0.37097928,105240.0,105230.0,0.20956276]
[1750729252614,0.37097928,105240.0,105230.0,0.20005986]
[1750729252820,0.37097928,105240.0,105230.0,0.21906575]
[1750729253026,0.08700085,105240.0,105230.0,0.22856856]
[1750729254391,0.08700085,105240.0,105230.0,0.01]
[1750729254800,0.37097928,105240.0,105230.0,0.01]
[1750729255452,0.08700085,105240.0,105230.0,0.01]
[1750729257884,0.37097928,105240.0,105230.0,0.01]
[1750729258305,0.37097928,105240.0,105230.0,0.006]
[1750729258513,0.37097928,105240.0,105230.0,0.009]
[1750729259361,0.46648114,105240.0,105230.0,0.009]
[1750729259509,0.46648114,105240.0,105230.0,0.003]
[1750729259939,0.46648114,105240.0,105230.0,0.007]
[1750729260143,0.46648114,105240.0,105230.0,0.003]
[1750729260578,0.46648114,105240.0,105230.0,0.004]
[1750729260843,0.46648114,105240.0,105230.0,0.003]
[1750729261064,0.04634085,105230.0,105220.0,0.0097501]
[1750729261451,0.04634085,105230.0,105220.0,0.01925381]
[1750729261963,0.04634085,105230.0,105220.0,0.0097501]
[1750729262261,0.04634085,105230.0,105220.0,0.0192539]
[1750729262670,0.04634085,105230.0,105220.0,0.22833898]
[1750729262855,0.01454085,105230.0,105220.0,0.23133898]
[1750729263104,0.01454085,105230.0,105220.0,0.24484233]
[1750729263229,0.04614085,105230.0,105220.0,0.24484233]
[1750729263434,0.04614085,105230.0,105220.0,0.23533898]
[1750729264024,0.04614085,105230.0,105220.0,0.24484233]
[1750729264433,0.01454085,105230.0,105220.0,0.2448417]
[1750729264656,0.01454085,105230.0,105220.0,0.23533844]
[1750729265369,0.01454085,105230.0,105220.0,0.22583509]
[1750729265594,0.04614085,105230.0,105220.0,0.23533844]
[1750729265839,0.04614085,105230.0,105220.0,0.2448417]
[1750729266056,0.04614085,105230.0,105220.0,0.23533844]
[1750729266295,0.04614085,105230.0,105220.0,0.2448417]
[1750729266743,0.04614085,105230.0,105220.0,0.22583509]
[1750729266967,0.04614085,105230.0,105220.0,0.21633165]
[1750729267196,0.04614085,105230.0,105220.0,0.24484179]
[1750729267702,0.01454085,105230.0,105220.0,0.24484179]
[1750729267929,0.0309,105240.0,105230.0,0.21856793]
[1750729268161,0.07142,105240.0,105230.0,0.22807056]
[1750729268382,0.07142,105240.0,105230.0,0.49428382]
[1750729268595,0.08596085,105240.0,105230.0,0.49428382]
[1750729269218,0.08596085,105240.0,105230.0,0.49528382]
[1750729269435,0.04544085,105240.0,105230.0,0.49528382]
[1750729269648,0.05506085,105240.0,105230.0,0.49528382]
[1750729270253,0.01454085,105240.0,105230.0,0.49528382]
[1750729270456,0.05506085,105240.0,105230.0,0.23007056]
[1750729272285,0.08596085,105240.0,105230.0,0.23007056]
[1750729275853,0.05506085,105240.0,105230.0,0.23007056]
[1750729276481,0.08656085,105240.0,105230.0,0.23007056]
[1750729277836,0.08656085,105240.0,105230.0,0.13307056]
[1750729278470,0.08656085,105240.0,105230.0,0.15207627]
[1750729283454,0.08656085,105240.0,105230.0,0.14257391]
[1750729283656,0.08656085,105240.0,105230.0,0.16157872]
[1750729284131,0.08656085,105240.0,105230.0,0.15207645]
[1750729285507,0.08656085,105240.0,105230.0,0.13307128]
[1750729286752,0.08656085,105240.0,105230.0,0.15207645]
[1750729286966,0.08656085,105240.0,105230.0,0.14257391]
[1750729287601,0.08656085,105240.0,105230.0,0.15207645]
[1750729288255,0.04604085,105240.0,105230.0,0.15207645]
[1750729288478,0.08652085,105240.0,105230.0,0.14257391]
[1750729289620,0.08652085,105240.0,105230.0,0.15207645]
[1750729290062,0.08652085,105240.0,105230.0,0.14257391]
[1750729290499,0.04604085,105240.0,105230.0,0.14257391]
[1750729290715,0.35277135,105240.0,105230.0,0.14257391]
[1750729290925,0.35277135,105240.0,105230.0,0.15207645]
[1750729291657,0.35277135,105240.0,105230.0,0.16157827]
[1750729292150,0.35277135,105240.0,105230.0,0.15207591]
[1750729292379,0.35277135,105240.0,105230.0,0.16157827]
[1750729293082,0.08652085,105240.0,105230.0,0.42782877]
[1750729293959,0.08652085,105240.0,105230.0,0.41832641]
[1750729294140,0.08652085,105240.0,105230.0,0.40882396]
[1750729294387,0.08652085,105240.0,105230.0,0.41832641]
[1750729295008,0.08652085,105240.0,105230.0,0.42782877]
[1750729295419,0.08652085,105240.0,105230.0,0.41832641]
[1750729295805,0.08652085,105240.0,105230.0,0.42782877]
[1750729299020,0.08652085,105240.0,105230.0,0.16157827]
[1750729299226,0.08652085,105240.0,105230.0,0.42782877]
[1750729302344,0.07288,105250.0,105240.0,0.21853276]
[1750729302565,0.07288,105250.0,105240.0,0.46578027]
[1750729302769,0.3391305,105250.0,105240.0,0.20903149]
[1750729302978,0.3391305,105250.0,105240.0,0.21853312]
[1750729303184,0.07288,105250.0,105240.0,0.21853312]
[1750729303358,0.3391305,105250.0,105240.0,0.22803466]
[1750729304016,0.3391305,105250.0,105240.0,0.21853312]
[1750729304523,0.3391305,105250.0,105240.0,0.22903466]
[1750729304776,0.3391305,105250.0,105240.0,0.24053611]
[1750729304974,0.3391305,105250.0,105240.0,0.23953611]
[1750729305185,0.0324,105250.0,105240.0,0.24253611]
[1750729305392,0.07288,105250.0,105240.0,0.24253611]
[1750729305664,0.3391305,105250.0,105240.0,0.24253611]
[1750729306065,0.07288,105250.0,105240.0,0.24253611]
[1750729307145,0.0324,105250.0,105240.0,0.24253611]
[1750729307395,0.07288,105250.0,105240.0,0.24253611]
[1750729308062,0.3391305,105250.0,105240.0,0.23303466]
[1750729308285,0.07288,105250.0,105240.0,0.23303466]
[1750729308491,0.3391305,105250.0,105240.0,0.23303466]
[1750729308727,0.3391305,105250.0,105240.0,0.21403149]
[1750729308930,0.3391305,105250.0,105240.0,0.22353312]
[1750729309363,0.3391305,105250.0,105240.0,0.21403149]
[1750729309651,0.3391305,105250.0,105240.0,0.22353312]
[1750729310223,0.3391305,105250.0,105240.0,0.23303466]
[1750729310635,0.3391305,105250.0,105240.0,0.22353312]
[1750729310827,0.3391305,105250.0,105240.0,0.23303466]
[1750729311028,0.3391305,105250.0,105240.0,0.21403149]
[1750729311420,0.3391305,105250.0,105240.0,0.22353312]
[1750729312551,0.3391305,105250.0,105240.0,0.23303466]
[1750729313371,0.3391305,105250.0,105240.0,0.24253611]
[1750729313587,0.3391305,105250.0,105240.0,0.23303466]
[1750729314419,0.3391305,105250.0,105240.0,0.24253611]
[1750729314814,0.07288,105250.0,105240.0,0.24253611]
[1750729315585,0.07288,105250.0,105240.0,0.50878661]
[1750729316530,0.04048,105250.0,105240.0,0.50878661]
[1750729317921,0.04048,105250.0,105240.0,0.24253611]
[1750729318151,0.0324,105260.0,105250.0,0.20902548]
[1750729318389,0.0404,105260.0,105250.0,0.48477653]
[1750729319302,0.30112,105270.0,105260.0,0.21850546]
[1750729319552,0.26872,105270.0,105260.0,0.48475596]
[1750729321385,0.26872,105270.0,105260.0,0.48675596]
[1750729321611,0.0404,105270.0,105260.0,0.48675596]
[1750729321836,0.0404,105270.0,105260.0,0.48875596]
[1750729322517,0.0404,105270.0,105260.0,0.48675596]
[1750729322948,0.0404,105270.0,105260.0,0.48975596]
[1750729323168,0.0404,105270.0,105260.0,0.48775596]
[1750729323410,0.073,105270.0,105260.0,0.48775596]
[1750729323632,0.073,105270.0,105260.0,0.49075596]
[1750729324743,0.073,105270.0,105260.0,0.22450546]
[1750729324964,0.073,105270.0,105260.0,0.64627596]
[1750729325388,0.073,105270.0,105260.0,0.38002546]
[1750729327653,0.073,105270.0,105260.0,0.64627596]
[1750729328006,0.08754085,105270.0,105260.0,0.21500581]
[1750729328235,0.35379135,105270.0,105260.0,0.21500581]
[1750729328697,0.44929321,105270.0,105260.0,0.20550598]
[1750729328922,0.44929321,105270.0,105260.0,0.23400601]
[1750729329140,0.18304271,105270.0,105260.0,0.23400601]
[1750729329360,0.44929321,105270.0,105260.0,0.23400601]
[1750729329580,0.44929321,105270.0,105260.0,0.2435053]
[1750729330094,0.44929321,105270.0,105260.0,0.22450573]
[1750729330971,0.44929321,105270.0,105260.0,0.23400556]
[1750729331447,0.44929321,105270.0,105260.0,0.24350521]
[1750729331678,0.18304271,105270.0,105260.0,0.24350521]
[1750729331889,0.18304271,105270.0,105260.0,0.50975571]
[1750729334319,0.18304271,105270.0,105260.0,0.24350521]
[1750729334591,0.04104818,105280.0,105270.0,0.02849706]
[1750729334792,0.08144818,105280.0,105270.0,0.21848471]
[1750729335062,0.09598903,105280.0,105270.0,0.21848471]
[1750729335957,0.0721,105280.0,105270.0,0.50230685]
[1750729336175,0.0721,105280.0,105270.0,0.50430685]
[1750729336830,0.0721,105280.0,105270.0,0.22048471]
[1750729338829,0.0721,105280.0,105270.0,0.22248471]
[1750729341069,0.0405,105280.0,105270.0,0.22248471]
[1750729341492,0.0712,105280.0,105270.0,0.22248471]
[1750729346762,0.04062,105280.0,105270.0,0.50630685]
[1750729347592,0.07132,105280.0,105270.0,0.50630685]
[1750729347812,0.07132,105280.0,105270.0,0.22248471]
[1750729351954,0.07132,105280.0,105270.0,0.20348694]
[1750729352168,0.07132,105280.0,105270.0,0.22248471]
[1750729360334,0.33737219,105280.0,105270.0,0.22248471]
[1750729361164,0.35191304,105280.0,105270.0,0.004]
[1750729361387,0.33684271,105280.0,105270.0,0.004]
[1750729361602,0.86894709,105280.0,105270.0,0.004]
[1750729362317,0.62068606,105280.0,105270.0,0.004]
[1750729362761,0.62068606,105280.0,105270.0,0.01349938]
[1750729363662,0.62068606,105280.0,105270.0,0.004]
[1750729365001,0.62068606,105280.0,105270.0,0.01349938]
[1750729365212,0.62068606,105280.0,105270.0,0.004]
[1750729365590,0.62068606,105280.0,105270.0,0.01349938]
[1750729366866,0.62068606,105280.0,105270.0,0.004]
[1750729370567,0.98925206,105280.0,105270.0,0.004]
[1750729376953,0.70540871,105280.0,105270.0,0.004]
[1750729377156,0.98925206,105280.0,105270.0,0.004]
[1750729378486,0.98925206,105280.0,105270.0,0.21298614]
[1750729378692,0.98925206,105280.0,105270.0,0.21298623]
[1750729378898,0.98925206,105280.0,105270.0,0.21298632]
[1750729380076,0.67672271,105280.0,105270.0,0.22248552]
[1750729380268,0.96056606,105280.0,105270.0,0.23198463]
[1750729380721,0.67672271,105280.0,105270.0,0.23198463]
[1750729381121,0.67672271,105280.0,105270.0,0.22248552]
[1750729381523,0.67672271,105280.0,105270.0,0.23198463]
[1750729381918,0.67672271,105280.0,105270.0,0.004]
[1750729382091,0.48084271,105280.0,105270.0,0.01349938]
[1750729382275,0.94280615,105280.0,105270.0,0.004]
[1750729382720,0.74692615,105280.0,105270.0,0.01349929]
[1750729382899,0.94280615,105280.0,105270.0,0.01349938]
[1750729383777,0.94280615,105280.0,105270.0,0.004]
[1750729384636,1.20888959,105280.0,105270.0,0.004]
[1750729386725,0.94280615,105280.0,105270.0,0.004]
[1750729387182,0.94280615,105280.0,105270.0,0.01349938]
[1750729387692,0.94280615,105280.0,105270.0,0.004]
[1750729388578,0.94280615,105280.0,105270.0,0.01349938]
[1750729389245,0.94280615,105280.0,105270.0,0.004]
[1750729390129,1.20888959,105280.0,105270.0,0.004]
[1750729392185,0.67672271,105280.0,105270.0,0.004]
[1750729392424,1.20888959,105280.0,105270.0,0.004]
[1750729393591,1.23745559,105280.0,105270.0,0.004]
[1750729394296,1.62182303,105280.0,105270.0,0.004]
[1750729394528,1.63964643,105280.0,105270.0,0.004]
[1750729394752,1.29368943,105280.0,105270.0,0.004]
[1750729395219,0.04654085,105260.0,105240.0,0.22803448]
[1750729395452,0.0404,105250.0,105240.0,0.21853312]
[1750729395700,0.0404,105250.0,105240.0,0.49411801]
[1750729396219,0.0404,105250.0,105240.0,0.79210145]
[1750729396934,0.0404,105250.0,105240.0,0.52601801]
[1750729398560,0.0404,105250.0,105240.0,0.53201801]
[1750729398784,0.0404,105250.0,105240.0,0.53001801]
[1750729399255,0.0404,105250.0,105240.0,0.53301801]
[1750729399974,0.0404,105250.0,105240.0,0.50111801]
[1750729400230,0.0718,105250.0,105240.0,0.50111819]
[1750729400466,0.0718,105250.0,105240.0,0.23503475]
[1750729402361,0.08634085,105250.0,105240.0,0.20652987]
[1750729402543,0.08634085,105250.0,105240.0,0.016502]
[1750729402809,0.08634085,105250.0,105240.0,0.2160457]
[1750729403017,0.08634085,105250.0,105240.0,0.22554751]
[1750729403190,0.08634085,105250.0,105240.0,0.22154751]
[1750729403439,0.08634085,105250.0,105240.0,0.22804905]
[1750729403678,0.08634085,105250.0,105240.0,0.2375505]
[1750729403863,0.08634085,105250.0,105240.0,0.2395505]
[1750729404142,0.08634085,105250.0,105240.0,0.2415505]
[1750729404289,0.05494085,105250.0,105240.0,0.2415505]
[1750729406560,0.0318,105260.0,105250.0,0.19952475]
[1750729406750,0.0318,105260.0,105250.0,0.00950118]
[1750729406751,0.33768271,105260.0,105250.0,0.00950118]
[1750729406969,0.67768271,105260.0,105250.0,0.00950118]
[1750729407770,0.67768271,105260.0,105240.0,0.21104479]
[1750729407976,0.67768271,105260.0,105240.0,0.22054615]
[1750729408179,0.67768271,105260.0,105240.0,0.22804742]
[1750729409824,0.33768271,105260.0,105240.0,0.22804742]
[1750729409998,0.33768271,105260.0,105240.0,0.21854615]
[1750729410397,0.33768271,105260.0,105240.0,0.22804742]
[1750729410783,0.33768271,105260.0,105250.0,0.00950118]
[1750729411413,0.14184271,105260.0,105250.0,0.00950118]
[1750729411729,0.33768271,105260.0,105250.0,0.01900227]
[1750729411853,0.33768271,105260.0,105250.0,0.00950118]
[1750729412054,0.33768271,105260.0,105240.0,0.21854588]
[1750729413022,0.33768271,105260.0,105250.0,0.00950118]
[1750729413228,0.33768271,105260.0,105240.0,0.20904461]
[1750729413438,0.33768271,105260.0,105240.0,0.21854588]
[1750729414881,0.33768271,105260.0,105240.0,0.20904461]
[1750729415035,0.33768271,105260.0,105240.0,0.20904497]
[1750729415444,0.33768271,105260.0,105240.0,0.21854633]
[1750729415905,0.33768271,105260.0,105240.0,0.2280476]
[1750729416749,0.33768271,105260.0,105240.0,0.21854633]
[1750729417379,0.62160439,105260.0,105240.0,0.21854633]
[1750729417740,0.33768271,105260.0,105240.0,0.21854633]
[1750729418154,0.33768271,105260.0,105240.0,0.2280476]
[1750729419014,0.33768271,105260.0,105250.0,0.00950118]
[1750729419244,0.33768271,105260.0,105240.0,0.2280476]
[1750729419452,0.33768271,105260.0,105250.0,0.19952475]
[1750729419663,0.33768271,105260.0,105250.0,0.19952484]
[1750729420662,0.24218085,105260.0,105250.0,0.2280273]
[1750729421060,0.24218085,105260.0,105250.0,0.21852666]
[1750729421270,0.24218085,105260.0,105250.0,0.23752803]
[1750729421471,0.24218085,105260.0,105250.0,0.23752749]
[1750729422259,0.24218085,105260.0,105250.0,0.50365638]
[1750729422889,0.18684,105270.0,105260.0,0.20900599]
[1750729423096,0.24174085,105270.0,105260.0,0.20900599]
[1750729423472,0.50786974,105270.0,105260.0,0.21850591]
[1750729423821,0.50786974,105270.0,105260.0,0.20900599]
[1750729424222,0.50786974,105270.0,105260.0,0.20900608]
[1750729424415,0.24174085,105270.0,105260.0,0.21850609]
[1750729425150,0.24174085,105270.0,105260.0,0.22800601]
[1750729425298,0.24374085,105270.0,105260.0,0.22800601]
[1750729425494,0.24374085,105270.0,105260.0,0.21850609]
[1750729425703,0.24174085,105270.0,105260.0,0.21850609]
[1750729425921,0.24374085,105270.0,105260.0,0.21850609]
[1750729426086,0.24374085,105270.0,105260.0,0.22800601]
[1750729426286,0.24174085,105270.0,105260.0,0.21850609]
[1750729426539,0.24174085,105270.0,105260.0,0.22800601]
[1750729427653,0.24174085,105270.0,105260.0,0.00950028]
[1750729428072,0.0323,105260.0,105250.0,0.20902566]
[1750729428275,0.0323,105260.0,105250.0,0.21852621]
[1750729428484,0.0323,105260.0,105250.0,0.2185263]
[1750729428693,0.0323,105260.0,105250.0,0.22802685]
[1750729428890,0.0323,105260.0,105250.0,0.2185263]
[1750729429322,0.0323,105260.0,105250.0,0.23002685]
[1750729429949,0.0323,105260.0,105250.0,0.23202685]
[1750729439655,0.07262,105260.0,105250.0,0.23202685]
[1750729445044,0.08716085,105260.0,105250.0,0.21302566]
[1750729445280,0.35329825,105260.0,105250.0,0.21302566]
[1750729445504,0.35329825,105260.0,105250.0,0.22252639]
[1750729445732,0.35329825,105260.0,105250.0,0.21302566]
[1750729446087,0.35329825,105260.0,105250.0,0.20352484]
[1750729446413,0.35329825,105260.0,105250.0,0.22252657]
[1750729449266,0.35329825,105260.0,105250.0,0.23202721]
[1750729449504,0.35329825,105260.0,105250.0,0.24152794]
[1750729449710,0.35329825,105260.0,105250.0,0.23202685]
[1750729450146,0.08716085,105260.0,105250.0,0.2415274]
[1750729450360,0.35329825,105260.0,105250.0,0.2415274]
[1750729451444,0.35329825,105260.0,105250.0,0.23202685]
[1750729451995,0.35329825,105260.0,105250.0,0.2415274]
[1750729452584,0.61943565,105260.0,105250.0,0.004]
[1750729452799,0.71493751,105260.0,105250.0,0.01350109]
[1750729452973,0.71493751,105260.0,105250.0,0.01350118]
[1750729453526,0.71493751,105260.0,105250.0,0.004]
[1750729454685,0.18266271,105260.0,105250.0,0.004]
[1750729455093,0.71493751,105260.0,105250.0,0.004]
[1750729455809,0.44880011,105260.0,105250.0,0.004]
[1750729456091,0.71493751,105260.0,105250.0,0.004]
[1750729458926,0.74350851,105260.0,105250.0,0.004]
[1750729461186,0.77255057,105260.0,105250.0,0.004]
[1750729466465,0.92787057,105260.0,105250.0,0.004]
[1750729468886,0.66173317,105260.0,105250.0,0.004]
[1750729469227,0.66173317,105260.0,105250.0,0.01350118]
[1750729469433,0.66173317,105260.0,105250.0,0.004]
[1750729470440,0.92787057,105260.0,105250.0,0.004]
[1750729471608,0.63269111,105260.0,105250.0,0.004]
[1750729474074,0.89882851,105260.0,105250.0,0.004]
[1750729480642,0.66174173,105260.0,105250.0,0.01350118]
[1750729480856,0.66174173,105260.0,105250.0,0.004]
[1750729481664,0.92787913,105260.0,105250.0,0.004]
[1750729485632,0.89930813,105260.0,105250.0,0.004]
[1750729492436,0.89922813,105260.0,105250.0,0.004]
[1750729493938,0.63309073,105260.0,105250.0,0.004]
[1750729494145,0.60791437,105260.0,105250.0,0.004]
[1750729494824,0.60791437,105260.0,105250.0,0.01350118]
[1750729494999,0.57886375,105260.0,105250.0,0.22252693]
[1750729495390,0.57886375,105260.0,105250.0,0.22252702]
[1750729495774,0.57886375,105260.0,105250.0,0.21302602]
[1750729496145,0.57886375,105260.0,105250.0,0.22252702]
[1750729496431,0.38330375,105260.0,105250.0,0.22252702]
[1750729496680,0.57166011,105260.0,105250.0,0.23202793]
[1750729497342,0.01454085,105260.0,105250.0,0.53906552]
[1750729497580,0.4213774,105270.0,105260.0,0.21850618]
[1750729497774,0.57166011,105270.0,105260.0,0.2280061]
[1750729498449,0.57166011,105270.0,105260.0,0.23750593]
[1750729498651,0.05478085,105270.0,105260.0,0.23750593]
[1750729498861,0.47615825,105270.0,105260.0,0.23750539]
[1750729499195,0.21002085,105270.0,105260.0,0.2280052]
[1750729499403,0.47615825,105270.0,105260.0,0.2280052]
[1750729499614,0.47615825,105270.0,105260.0,0.20900563]
[1750729499815,0.47615825,105270.0,105260.0,0.21850546]
[1750729500466,0.47615825,105270.0,105260.0,0.20900599]
[1750729500710,0.49125825,105270.0,105260.0,0.20900617]
[1750729500926,0.02964085,105260.0,105250.0,0.00950118]
[1750729501117,0.67311751,105260.0,105250.0,0.01900227]
[1750729501330,0.67311751,105260.0,105240.0,0.24454707]
[1750729501539,0.40698011,105260.0,105250.0,0.01900209]
[1750729501743,0.44722011,105260.0,105250.0,0.00950109]
[1750729501942,0.44722011,105260.0,105250.0,0.01900209]
[1750729502171,0.44722011,105260.0,105240.0,0.22554426]
[1750729502426,0.0164,105250.0,105240.0,0.2090448]
[1750729502563,0.46633249,105260.0,105240.0,0.21854634]
[1750729502760,0.46633249,105260.0,105250.0,0.01150118]
[1750729503188,0.46633249,105260.0,105250.0,0.02100227]
[1750729503401,0.46633249,105260.0,105250.0,0.03050327]
[1750729503597,0.46633249,105260.0,105250.0,0.01150118]
[1750729503809,0.46633249,105260.0,105250.0,0.002]
[1750729504017,0.46633249,105260.0,105250.0,0.01150118]
[1750729504533,0.46633249,105260.0,105250.0,0.01350118]
[1750729504730,0.46633249,105260.0,105250.0,0.02300227]
[1750729505082,0.46633249,105260.0,105250.0,0.01350118]
[1750729505301,0.46633249,105260.0,105250.0,0.01150118]
[1750729505698,0.46633249,105260.0,105250.0,0.002]
[1750729506408,0.46633249,105260.0,105250.0,0.004]
[1750729506832,0.46633249,105260.0,105250.0,0.01350118]
[1750729507235,0.46633249,105260.0,105250.0,0.004]
[1750729507715,0.46633249,105260.0,105250.0,0.01350118]
[1750729507926,0.46633249,105260.0,105250.0,0.004]
[1750729508347,0.46633249,105260.0,105250.0,0.01350118]
[1750729509077,0.46633249,105260.0,105250.0,0.004]
[1750729512571,0.46633249,105260.0,105250.0,0.01350109]
[1750729512774,0.46633249,105260.0,105250.0,0.01350118]
[1750729512975,0.46633249,105260.0,105250.0,0.02300227]
[1750729513175,0.46633249,105260.0,105250.0,0.004]
[1750729515164,0.46633249,105260.0,105250.0,0.002]
[1750729516407,0.46633249,105260.0,105240.0,0.218547]
[1750729516607,0.44993249,105260.0,105240.0,0.22804863]
[1750729516811,0.0151,105250.0,105240.0,0.22804863]
[1750729517131,0.46513249,105260.0,105240.0,0.218547]
[1750729518628,0.46513249,105260.0,105240.0,0.22804863]
[1750729518905,0.46513249,105260.0,105240.0,0.20904528]
[1750729519130,0.46513249,105260.0,105240.0,0.218547]
[1750729519432,0.04024,105250.0,105240.0,0.218547]
[1750729520255,0.04024,105250.0,105240.0,0.22804863]
[1750729520904,0.04024,105250.0,105240.0,0.218547]
[1750729521253,0.04024,105250.0,105230.0,0.15356784]
[1750729521471,0.35618978,105250.0,105230.0,0.18207591]
[1750729521682,0.51138978,105250.0,105230.0,0.18207591]
[1750729521883,0.53567577,105250.0,105240.0,0.004]
[1750729522200,0.53567577,105250.0,105240.0,0.01350209]
[1750729522541,0.51795736,105250.0,105240.0,0.002]
[1750729523327,0.25172599,105250.0,105240.0,0.002]
[1750729523559,0.51795736,105250.0,105240.0,0.002]
[1750729524377,0.51795736,105250.0,105230.0,0.43880447]
[1750729524763,0.51795736,105250.0,105240.0,0.002]
[1750729525197,0.51795736,105250.0,105230.0,0.44830674]
[1750729525689,0.51795736,105250.0,105230.0,0.45030674]
[1750729525896,0.51795736,105250.0,105230.0,0.45980892]
[1750729526199,0.51795736,105250.0,105240.0,0.00950209]
[1750729526603,0.51795736,105250.0,105230.0,0.4523062]
[1750729526809,0.51795736,105250.0,105240.0,0.00950209]
[1750729527016,0.50821222,105250.0,105240.0,0.02850599]
[1750729527744,0.49261222,105250.0,105240.0,0.2280496]
[1750729528070,0.49261222,105250.0,105240.0,0.2300496]
[1750729528273,0.49261222,105250.0,105240.0,0.22054779]
[1750729528712,0.49261222,105250.0,105240.0,0.002]
[1750729528927,0.49261222,105250.0,105240.0,0.02100409]
[1750729529613,0.49261222,105250.0,105240.0,0.03050599]
[1750729529840,0.01454085,105250.0,105240.0,0.50578233]
[1750729530050,0.06877,105270.0,105260.0,0.23400546]
[1750729530235,0.06877,105270.0,105260.0,0.23980581]
[1750729530469,0.06877,105270.0,105260.0,0.51553683]
[1750729530669,0.0402,105270.0,105260.0,0.51553683]
[1750729531860,0.0422,105270.0,105260.0,0.7817682]
[1750729532062,0.0422,105270.0,105260.0,0.7837682]
[1750729532274,0.0402,105270.0,105260.0,0.7837682]
[1750729532519,0.0402,105270.0,105260.0,0.53506347]
[1750729533120,0.24342294,105280.0,105270.0,0.21848471]
[1750729533351,0.28362294,105280.0,105270.0,0.20898614]
[1750729533499,0.28362294,105280.0,105270.0,0.21848525]
[1750729533739,0.28362294,105280.0,105270.0,0.22798427]
[1750729533910,0.28362294,105280.0,105270.0,0.19948694]
[1750729534126,0.28362294,105280.0,105270.0,0.00949938]
[1750729534299,0.28362294,105280.0,105260.0,0.53506257]
[1750729534501,0.28362294,105280.0,105270.0,0.00949938]
[1750729535236,0.28362294,105280.0,105270.0,0.01899867]
[1750729535448,0.28362294,105280.0,105270.0,0.02849778]
[1750729535615,0.28362294,105280.0,105270.0,0.03799698]
[1750729535811,0.28362294,105280.0,105270.0,0.23748302]
[1750729536061,0.28362294,105280.0,105270.0,0.2688832]
[1750729536288,0.28362294,105280.0,105270.0,0.25938427]
[1750729536695,0.28362294,105280.0,105270.0,0.2688832]
[1750729536916,0.28362294,105280.0,105270.0,0.26888275]
[1750729537126,0.28362294,105280.0,105270.0,0.2688823]
[1750729537763,0.26908209,105280.0,105270.0,0.25938355]
[1750729537965,0.26908209,105280.0,105270.0,0.24038578]
[1750729538248,0.26908209,105280.0,105270.0,0.25088471]
[1750729538918,0.26908209,105280.0,105270.0,0.25088516]
[1750729539130,0.26908209,105280.0,105270.0,0.20998614]
[1750729539563,0.26908209,105280.0,105270.0,0.21948516]
[1750729539783,0.26908209,105280.0,105270.0,0.228984]
[1750729539999,0.26908209,105280.0,105270.0,0.21948516]
[1750729540209,0.26908209,105280.0,105270.0,0.20998614]
[1750729540423,0.26908209,105280.0,105270.0,0.21948516]
[1750729540643,0.26908209,105280.0,105270.0,0.001]
[1750729540868,0.28478209,105280.0,105270.0,0.01049929]
[1750729541545,0.28478209,105280.0,105270.0,0.01999849]
[1750729541733,0.28478209,105280.0,105270.0,0.0294976]
[1750729541944,0.28478209,105280.0,105270.0,0.01999849]
[1750729542362,0.28478209,105280.0,105270.0,0.01049929]
[1750729542806,0.28478209,105280.0,105270.0,0.20998614]
[1750729543250,0.26908209,105280.0,105270.0,0.22898427]
[1750729543465,0.26908209,105280.0,105270.0,0.26978302]
[1750729543679,0.26908209,105280.0,105270.0,0.26978257]
[1750729544171,0.22888209,105280.0,105270.0,0.26028373]
[1750729544386,0.26908209,105280.0,105270.0,0.25078498]
[1750729544962,0.26908209,105280.0,105270.0,0.22508596]
[1750729545420,0.26908209,105280.0,105270.0,0.20048694]
[1750729545641,0.26908209,105280.0,105270.0,0.01049938]
[1750729545856,0.28528209,105280.0,105270.0,0.001]
[1750729546075,0.29982294,105280.0,105270.0,0.001]
[1750729546291,0.31482294,105280.0,105270.0,0.001]
[1750729546528,0.31482294,105280.0,105270.0,0.01049938]
[1750729546746,0.29982294,105280.0,105270.0,0.001]
[1750729546960,0.28362294,105280.0,105270.0,0.001]
[1750729547168,0.28362294,105280.0,105270.0,0.01049929]
[1750729547390,0.30012294,105280.0,105270.0,0.001]
[1750729547597,0.58388095,105280.0,105270.0,0.01049938]
[1750729549303,0.58388095,105280.0,105270.0,0.01999867]
[1750729549514,0.28362294,105280.0,105270.0,0.22898418]
[1750729549723,0.28362294,105280.0,105270.0,0.21948543]
[1750729549938,0.28362294,105280.0,105270.0,0.21948552]
[1750729550670,0.28362294,105280.0,105270.0,0.01049938]
[1750729550879,0.30022294,105280.0,105270.0,0.01049938]
[1750729551087,0.30022294,105280.0,105270.0,0.01999867]
[1750729551712,0.30022294,105280.0,105270.0,0.02949787]
[1750729552044,0.28362294,105280.0,105270.0,0.22898454]
[1750729552250,0.28362294,105280.0,105270.0,0.22898463]